[Event "Live Chess"]
[Site "Chess.com"]
[Date "2023.05.21"]
[Round "-"]
[White "LaupMiths"]
[Black "Missedidea"]
[Result "1-0"]
[WhiteElo "1828"]
[BlackElo "1770"]
[TimeControl "300"]
[EndTime "7:33:05 PDT"]
[Termination "LaupMiths won by resignation"]

1. d4 {[%clk 0:04:57.2]} 1... Nf6 {[%clk 0:04:58.3]} 2. Nf3 {[%clk 0:04:53.8]}
2... g6 {[%clk 0:04:56.7]} 3. c4 {[%clk 0:04:52]} 3... Bg7 {[%clk 0:04:54.7]} 4.
Nc3 {[%clk 0:04:50.3]} 4... d6 {[%clk 0:04:53.6]} 5. e4 {[%clk 0:04:48.3]} 5...
O-O {[%clk 0:04:52.3]} 6. Be2 {[%clk 0:04:47]} 6... e5 {[%clk 0:04:50]} 7. d5
{[%clk 0:04:46.5]} 7... a5 {[%clk 0:04:47.6]} 8. h3 {[%clk 0:04:45.4]} 8... Na6
{[%clk 0:04:46.5]} 9. Be3 {[%clk 0:04:38.8]} 9... b6 {[%clk 0:04:42.8]} 10. a3
{[%clk 0:04:35.9]} 10... Nc5 {[%clk 0:04:41.2]} 11. Nd2 {[%clk 0:04:32.5]} 11...
a4 {[%clk 0:04:38]} 12. g4 {[%clk 0:04:28]} 12... Bd7 {[%clk 0:04:35.2]} 13. f3
{[%clk 0:04:23.5]} 13... h6 {[%clk 0:04:25.1]} 14. Nf1 {[%clk 0:04:21.5]} 14...
Nh7 {[%clk 0:04:19.8]} 15. Rc1 {[%clk 0:04:14.1]} 15... Nb3 {[%clk 0:04:10.3]}
16. Rc2 {[%clk 0:04:12.4]} 16... Nd4 {[%clk 0:04:08.2]} 17. Rd2 {[%clk
0:04:06.8]} 17... f5 {[%clk 0:04:02.5]} 18. Rd3 {[%clk 0:03:21.1]} 18... Ng5
{[%clk 0:03:48.8]} 19. h4 {[%clk 0:03:05.6]} 19... fxe4 {[%clk 0:03:47]} 20.
hxg5 {[%clk 0:03:04.2]} 20... exd3 {[%clk 0:03:40.6]} 21. Qxd3 {[%clk
0:03:00.1]} 21... hxg5 {[%clk 0:03:23]} 22. Qxg6 {[%clk 0:02:55.9]} 22... Rf6
{[%clk 0:03:16.1]} 23. Qh7+ {[%clk 0:02:52.7]} 23... Kf8 {[%clk 0:03:13.3]} 24.
Bxg5 {[%clk 0:02:51.3]} 24... Qe8 {[%clk 0:02:54.3]} 25. Bxf6 {[%clk 0:02:47.8]}
25... Bxf6 {[%clk 0:02:52.8]} 26. Ne4 {[%clk 0:02:47]} 26... Bg7 {[%clk
0:02:44]} 27. Nfg3 {[%clk 0:02:32]} 27... Qf7 {[%clk 0:02:26.7]} 28. O-O {[%clk
0:02:15.1]} 28... Qf4 {[%clk 0:02:17.6]} 29. Kg2 {[%clk 0:02:00.5]} 29... Re8
{[%clk 0:02:08.6]} 30. Rf2 {[%clk 0:01:55.2]} 30... Re7 {[%clk 0:01:56]} 31. Nh5
{[%clk 0:01:53.8]} 31... Qe3 {[%clk 0:01:27.4]} 32. Neg3 {[%clk 0:01:36.4]}
32... Rf7 {[%clk 0:01:14.6]} 33. Nxg7 {[%clk 0:01:32.7]} 33... Rxg7 {[%clk
0:01:10.2]} 34. Qh8+ {[%clk 0:01:31.7]} 34... Kf7 {[%clk 0:01:08.4]} 35. Qd8
{[%clk 0:01:27.8]} 35... Nxe2 {[%clk 0:00:54.7]} 36. Qxd7+ {[%clk 0:01:20.4]}
36... Kg6 {[%clk 0:00:49.5]} 37. Qe6+ {[%clk 0:01:08.1]} 37... Kh7 {[%clk
0:00:46.2]} 38. Rxe2 {[%clk 0:01:06.3]} 38... Qf4 {[%clk 0:00:38.9]} 39. Nf5
{[%clk 0:01:00.4]} 39... Rg6 {[%clk 0:00:36.4]} 40. Qf7+ {[%clk 0:00:54]} 1-0

[Event "Live Chess"]
[Site "Chess.com"]
[Date "2023.05.21"]
[Round "-"]
[White "onemoretime1975"]
[Black "PaulyD81"]
[Result "1-0"]
[WhiteElo "1841"]
[BlackElo "1189"]
[TimeControl "300"]
[EndTime "7:33:11 PDT"]
[Termination "onemoretime1975 won on time"]

1. e4 {[%clk 0:04:58.1]} 1... e5 {[%clk 0:04:58.1]} 2. Nf3 {[%clk 0:04:55.4]}
2... Nc6 {[%clk 0:04:55.9]} 3. Bc4 {[%clk 0:04:54.2]} 3... Nf6 {[%clk
0:04:46.1]} 4. d3 {[%clk 0:04:52.1]} 4... Bb4+ {[%clk 0:04:34.3]} 5. c3 {[%clk
0:04:49.8]} 5... Bc5 {[%clk 0:04:24.1]} 6. b4 {[%clk 0:04:47.6]} 6... Bb6 {[%clk
0:04:17.5]} 7. O-O {[%clk 0:04:44.5]} 7... a6 {[%clk 0:04:15.1]} 8. Be3 {[%clk
0:04:30.8]} 8... Bxe3 {[%clk 0:04:11.7]} 9. fxe3 {[%clk 0:04:29.2]} 9... O-O
{[%clk 0:04:01.5]} 10. h3 {[%clk 0:04:23.8]} 10... b5 {[%clk 0:03:59.8]} 11. Bd5
{[%clk 0:04:20.4]} 11... Bb7 {[%clk 0:03:40.7]} 12. Bxc6 {[%clk 0:04:17.5]}
12... Bxc6 {[%clk 0:03:38.4]} 13. Nxe5 {[%clk 0:04:16.5]} 13... Re8 {[%clk
0:03:13.1]} 14. Nxc6 {[%clk 0:04:13.4]} 14... dxc6 {[%clk 0:03:12.3]} 15. Qe2
{[%clk 0:04:01.7]} 15... a5 {[%clk 0:02:53.2]} 16. Nd2 {[%clk 0:03:53.7]} 16...
axb4 {[%clk 0:02:47.5]} 17. cxb4 {[%clk 0:03:52.6]} 17... Qe7 {[%clk 0:02:21.7]}
18. a3 {[%clk 0:03:44.2]} 18... c5 {[%clk 0:02:01.3]} 19. bxc5 {[%clk
0:03:33.4]} 19... Qxc5 {[%clk 0:01:54.6]} 20. Nb3 {[%clk 0:03:31.3]} 20... Qd6
{[%clk 0:01:24.1]} 21. Nd4 {[%clk 0:03:29.3]} 21... c6 {[%clk 0:00:57.8]} 22.
Nf5 {[%clk 0:03:20.6]} 22... Qc5 {[%clk 0:00:31]} 23. d4 {[%clk 0:03:16]} 23...
Qc4 {[%clk 0:00:17.6]} 24. Qf3 {[%clk 0:03:06.7]} 24... Rxe4 {[%clk 0:00:10.2]}
25. Nh6+ {[%clk 0:03:03.9]} 25... Kf8 {[%clk 0:00:07.2]} 26. Qf5 {[%clk
0:02:49]} 26... Qd3 {[%clk 0:00:04]} 27. Qc5+ {[%clk 0:02:40.7]} 27... Re7
{[%clk 0:00:00.1]} 28. Nf5 {[%clk 0:02:37]} 1-0

[Event "Live Chess"]
[Site "Chess.com"]
[Date "2023.05.21"]
[Round "-"]
[White "MarkLim1"]
[Black "LL220284LL"]
[Result "0-1"]
[WhiteElo "1705"]
[BlackElo "2241"]
[TimeControl "300"]
[EndTime "7:33:20 PDT"]
[Termination "LL220284LL won by resignation"]

1. e4 {[%clk 0:04:57.9]} 1... d6 {[%clk 0:04:59]} 2. d4 {[%clk 0:04:55.8]} 2...
Nf6 {[%clk 0:04:56.7]} 3. Nc3 {[%clk 0:04:55]} 3... g6 {[%clk 0:04:55.6]} 4. f4
{[%clk 0:04:54.3]} 4... Bg7 {[%clk 0:04:54.3]} 5. Nf3 {[%clk 0:04:53.5]} 5...
O-O {[%clk 0:04:45]} 6. Bd3 {[%clk 0:04:52.4]} 6... Nc6 {[%clk 0:04:41]} 7. e5
{[%clk 0:04:46.5]} 7... Nh5 {[%clk 0:04:32.8]} 8. O-O {[%clk 0:04:44.1]} 8...
dxe5 {[%clk 0:04:30.6]} 9. fxe5 {[%clk 0:04:41.7]} 9... Nxd4 {[%clk 0:04:28.9]}
10. Be3 {[%clk 0:04:37.1]} 10... Bg4 {[%clk 0:04:21.6]} 11. Be2 {[%clk
0:04:18.3]} 11... Nxe2+ {[%clk 0:04:19.1]} 12. Qxe2 {[%clk 0:04:17.4]} 12...
Bxe5 {[%clk 0:04:16.4]} 13. h3 {[%clk 0:04:16.5]} 13... Ng3 {[%clk 0:04:14.7]}
14. Qf2 {[%clk 0:04:15.3]} 14... Nxf1 {[%clk 0:04:11.9]} 15. Nxe5 {[%clk
0:04:14.4]} 15... Nxe3 {[%clk 0:04:09.8]} 16. Qxe3 {[%clk 0:04:03.1]} 16... Be6
{[%clk 0:04:06.9]} 17. Rd1 {[%clk 0:03:56.6]} 17... Qe8 {[%clk 0:04:05.8]} 18.
Qh6 {[%clk 0:03:52.4]} 18... Rd8 {[%clk 0:04:03.2]} 19. Rf1 {[%clk 0:03:48.3]}
19... f6 {[%clk 0:04:01.2]} 20. Ng4 {[%clk 0:03:43.7]} 20... Bxg4 {[%clk
0:03:59.6]} 21. hxg4 {[%clk 0:03:42.7]} 21... Qf7 {[%clk 0:03:58.4]} 22. Rf3
{[%clk 0:03:41.3]} 22... Qg7 {[%clk 0:03:54.6]} 23. Qe3 {[%clk 0:03:40.2]} 23...
e5 {[%clk 0:03:53.1]} 24. Rh3 {[%clk 0:03:37.5]} 24... Rd4 {[%clk 0:03:51]} 25.
g5 {[%clk 0:03:35.9]} 25... f5 {[%clk 0:03:49.4]} 26. Nb5 {[%clk 0:03:31.9]}
26... Rd1+ {[%clk 0:03:46.1]} 27. Kh2 {[%clk 0:03:30.7]} 27... Rfd8 {[%clk
0:03:42.8]} 28. Nxc7 {[%clk 0:03:26.5]} 28... Qxc7 {[%clk 0:03:40.9]} 0-1

[Event "Live Chess"]
[Site "Chess.com"]
[Date "2023.05.21"]
[Round "-"]
[White "Singapourfeuj"]
[Black "PantherCal"]
[Result "0-1"]
[WhiteElo "2185"]
[BlackElo "1874"]
[TimeControl "300"]
[EndTime "7:33:22 PDT"]
[Termination "PantherCal won by resignation"]

1. d4 {[%clk 0:04:57]} 1... d5 {[%clk 0:04:58.4]} 2. Nf3 {[%clk 0:04:55.5]} 2...
c6 {[%clk 0:04:58.3]} 3. c4 {[%clk 0:04:54.1]} 3... Nf6 {[%clk 0:04:58.2]} 4.
Nc3 {[%clk 0:04:52.8]} 4... e6 {[%clk 0:04:56.6]} 5. Bg5 {[%clk 0:04:51.2]} 5...
Nbd7 {[%clk 0:04:54.7]} 6. cxd5 {[%clk 0:04:50.3]} 6... cxd5 {[%clk 0:04:53.9]}
7. Rc1 {[%clk 0:04:48.2]} 7... Bb4 {[%clk 0:04:52.6]} 8. a3 {[%clk 0:04:46.3]}
8... Bd6 {[%clk 0:04:50.9]} 9. e3 {[%clk 0:04:45.2]} 9... a6 {[%clk 0:04:50.1]}
10. Bd3 {[%clk 0:04:43.6]} 10... O-O {[%clk 0:04:48.3]} 11. O-O {[%clk
0:04:42.5]} 11... b5 {[%clk 0:04:47.3]} 12. h3 {[%clk 0:04:41.3]} 12... Bb7
{[%clk 0:04:46.4]} 13. Qe2 {[%clk 0:04:39.5]} 13... Rc8 {[%clk 0:04:44.5]} 14.
e4 {[%clk 0:04:38.2]} 14... dxe4 {[%clk 0:04:43.4]} 15. Nxe4 {[%clk 0:04:36.3]}
15... Be7 {[%clk 0:04:42.5]} 16. Nc5 {[%clk 0:04:32.5]} 16... Nxc5 {[%clk
0:04:37.9]} 17. dxc5 {[%clk 0:04:31.6]} 17... Rxc5 {[%clk 0:04:11.9]} 18. Rxc5
{[%clk 0:04:29.2]} 18... Bxc5 {[%clk 0:04:11.8]} 19. b4 {[%clk 0:04:27.3]} 19...
Be7 {[%clk 0:04:09.3]} 20. Rd1 {[%clk 0:04:26.3]} 20... Qb6 {[%clk 0:04:02.6]}
21. Ne5 {[%clk 0:04:22.2]} 21... Nd5 {[%clk 0:03:54.8]} 22. Nd7 {[%clk
0:04:19.2]} 22... Qc6 {[%clk 0:03:45.2]} 23. Nxf8 {[%clk 0:04:10.8]} 23... Nc3
{[%clk 0:03:40]} 24. Bxh7+ {[%clk 0:04:01.7]} 24... Kxf8 {[%clk 0:03:37.7]} 25.
Bxe7+ {[%clk 0:04:00.4]} 25... Kxe7 {[%clk 0:03:36.7]} 26. Qg4 {[%clk
0:03:58.1]} 26... Nxd1 {[%clk 0:03:30.8]} 27. Qg5+ {[%clk 0:03:56.9]} 27... Ke8
{[%clk 0:03:23.5]} 28. f3 {[%clk 0:03:53.5]} 28... Qd5 {[%clk 0:03:15.5]} 29.
Qxg7 {[%clk 0:03:39.6]} 29... Ne3 {[%clk 0:02:58.5]} 30. Be4 {[%clk 0:03:36.5]}
30... Qd1+ {[%clk 0:02:45.3]} 31. Kf2 {[%clk 0:03:30.9]} 31... Bxe4 {[%clk
0:02:42.9]} 32. Qg8+ {[%clk 0:03:29]} 32... Ke7 {[%clk 0:02:38.9]} 33. Qg5+
{[%clk 0:03:27.6]} 33... Kd7 {[%clk 0:02:37.4]} 34. Qxe3 {[%clk 0:03:26.1]}
34... Bd5 {[%clk 0:02:30.2]} 35. Qa7+ {[%clk 0:03:23.7]} 35... Kd6 {[%clk
0:02:29.3]} 36. Qxa6+ {[%clk 0:03:22.5]} 36... Ke5 {[%clk 0:02:29]} 37. Qxb5
{[%clk 0:03:20.6]} 37... Qd4+ {[%clk 0:02:18.7]} 38. Kg3 {[%clk 0:03:17.7]}
38... Qf4+ {[%clk 0:02:17.1]} 39. Kf2 {[%clk 0:03:16.9]} 39... Qd2+ {[%clk
0:02:14.1]} 40. Kg1 {[%clk 0:03:11.1]} 40... Qc1+ {[%clk 0:02:11.9]} 41. Kh2
{[%clk 0:03:09]} 41... Qxa3 {[%clk 0:02:11.1]} 42. Qb8+ {[%clk 0:03:06.8]} 42...
Kf5 {[%clk 0:02:08.6]} 43. b5 {[%clk 0:03:00.2]} 43... Qb2 {[%clk 0:01:56.7]}
44. Qc7 {[%clk 0:02:57.2]} 44... Qe5+ {[%clk 0:01:47.1]} 45. Qxe5+ {[%clk
0:02:52.1]} 45... Kxe5 {[%clk 0:01:47]} 46. b6 {[%clk 0:02:47.9]} 46... Kd6
{[%clk 0:01:46]} 47. h4 {[%clk 0:02:46.9]} 47... Bc4 {[%clk 0:01:36.6]} 48. g4
{[%clk 0:02:40.1]} 48... Kc6 {[%clk 0:01:32.1]} 49. h5 {[%clk 0:02:37.7]} 49...
Kxb6 {[%clk 0:01:31]} 50. h6 {[%clk 0:02:36.7]} 50... Bd3 {[%clk 0:01:29.8]} 51.
f4 {[%clk 0:02:35.9]} 51... Bh7 {[%clk 0:01:28.2]} 52. Kg3 {[%clk 0:02:34.9]}
52... Kc5 {[%clk 0:01:27]} 53. Kh4 {[%clk 0:02:34]} 53... Kd5 {[%clk 0:01:23.8]}
54. Kg5 {[%clk 0:02:33]} 54... Ke4 {[%clk 0:01:22]} 55. f5 {[%clk 0:02:25.1]}
55... Ke5 {[%clk 0:01:12.4]} 56. f6 {[%clk 0:02:17.7]} 56... Ke4 {[%clk
0:01:09.4]} 57. Kh5 {[%clk 0:02:16]} 57... Kf4 {[%clk 0:01:09]} 58. g5 {[%clk
0:02:15]} 58... e5 {[%clk 0:01:08.2]} 59. Kh4 {[%clk 0:02:12.9]} 59... Kf5
{[%clk 0:01:04.5]} 60. Kh5 {[%clk 0:02:11.6]} 60... e4 {[%clk 0:01:03.5]} 61.
Kh4 {[%clk 0:02:10.7]} 61... e3 {[%clk 0:01:02.5]} 62. Kg3 {[%clk 0:02:09.8]}
62... Kxg5 {[%clk 0:01:02.1]} 63. Kf3 {[%clk 0:02:08.8]} 63... Kxh6 {[%clk
0:01:00.9]} 64. Kxe3 {[%clk 0:02:08.4]} 64... Kg6 {[%clk 0:01:00.8]} 65. Kf4
{[%clk 0:02:07.6]} 65... Kxf6 {[%clk 0:01:00.7]} 0-1

[Event "Live Chess"]
[Site "Chess.com"]
[Date "2023.05.21"]
[Round "-"]
[White "Ian-Morley"]
[Black "WilliWeisswurst"]
[Result "1/2-1/2"]
[WhiteElo "1090"]
[BlackElo "1760"]
[TimeControl "300"]
[EndTime "7:33:24 PDT"]
[Termination "Game drawn - timeout vs insufficient material"]

1. e4 {[%clk 0:04:52.1]} 1... c5 {[%clk 0:04:59.4]} 2. Nf3 {[%clk 0:04:46.7]}
2... d6 {[%clk 0:04:58.9]} 3. Bb5+ {[%clk 0:04:45.3]} 3... Bd7 {[%clk
0:04:57.5]} 4. Bxd7+ {[%clk 0:04:44.9]} 4... Nxd7 {[%clk 0:04:57.4]} 5. O-O
{[%clk 0:04:44.3]} 5... Ngf6 {[%clk 0:04:56.9]} 6. Re1 {[%clk 0:04:43.9]} 6...
e6 {[%clk 0:04:55.7]} 7. c3 {[%clk 0:04:43.6]} 7... Be7 {[%clk 0:04:54.9]} 8. d4
{[%clk 0:04:43.2]} 8... cxd4 {[%clk 0:04:54.8]} 9. cxd4 {[%clk 0:04:42.2]} 9...
Rc8 {[%clk 0:04:52]} 10. Nc3 {[%clk 0:04:41.3]} 10... O-O {[%clk 0:04:50.1]} 11.
e5 {[%clk 0:04:40.6]} 11... dxe5 {[%clk 0:04:49]} 12. dxe5 {[%clk 0:04:40.3]}
12... Nd5 {[%clk 0:04:42.7]} 13. Nxd5 {[%clk 0:04:38.3]} 13... exd5 {[%clk
0:04:42.1]} 14. Qxd5 {[%clk 0:04:34.2]} 14... Qc7 {[%clk 0:04:18.5]} 15. Bf4
{[%clk 0:04:24.9]} 15... Nb6 {[%clk 0:04:17.2]} 16. Qd1 {[%clk 0:04:15.7]} 16...
Bc5 {[%clk 0:04:01.2]} 17. a3 {[%clk 0:04:04]} 17... Nc4 {[%clk 0:03:48.4]} 18.
b4 {[%clk 0:03:56.6]} 18... Bb6 {[%clk 0:03:41.6]} 19. Rc1 {[%clk 0:03:44.6]}
19... Qe7 {[%clk 0:03:33.3]} 20. Nd2 {[%clk 0:03:33]} 20... Nb2 {[%clk
0:03:11.8]} 21. Qe2 {[%clk 0:03:23.9]} 21... Rfd8 {[%clk 0:03:02.9]} 22. Rxc8
{[%clk 0:03:20.5]} 22... Rxc8 {[%clk 0:02:57.9]} 23. Ne4 {[%clk 0:03:19.2]}
23... Nc4 {[%clk 0:02:40.2]} 24. Nd6 {[%clk 0:03:12.3]} 24... Nxd6 {[%clk
0:02:27.4]} 25. exd6 {[%clk 0:03:11.1]} 25... Qd7 {[%clk 0:02:13.6]} 26. Qe7
{[%clk 0:03:05.4]} 26... Qxe7 {[%clk 0:01:55.8]} 27. Rxe7 {[%clk 0:02:59.2]}
27... h6 {[%clk 0:01:40.3]} 28. d7 {[%clk 0:02:53]} 28... Rd8 {[%clk 0:01:28.5]}
29. Re8+ {[%clk 0:02:49.9]} 29... Kh7 {[%clk 0:01:27.7]} 30. Rxd8 {[%clk
0:02:37.4]} 30... Bxd8 {[%clk 0:01:26.4]} 31. Kf1 {[%clk 0:02:36.3]} 31... Kg6
{[%clk 0:01:25.6]} 32. Ke2 {[%clk 0:02:35.6]} 32... Kf6 {[%clk 0:01:25.2]} 33.
Kd3 {[%clk 0:02:34.8]} 33... Ke7 {[%clk 0:01:24.9]} 34. Bb8 {[%clk 0:02:30.3]}
34... a6 {[%clk 0:01:23.9]} 35. Ba7 {[%clk 0:02:26.3]} 35... Kxd7 {[%clk
0:01:22.4]} 36. Bc5 {[%clk 0:01:27.4]} 36... g6 {[%clk 0:01:01.8]} 37. Ke4
{[%clk 0:01:25.3]} 37... Bf6 {[%clk 0:00:43.7]} 38. Kd5 {[%clk 0:01:22.8]} 38...
b5 {[%clk 0:00:36.3]} 39. f3 {[%clk 0:01:18.2]} 39... Bb2 {[%clk 0:00:34.3]} 40.
g4 {[%clk 0:01:10.5]} 40... Bxa3 {[%clk 0:00:33.1]} 41. h4 {[%clk 0:01:09.3]}
41... Bc1 {[%clk 0:00:31.8]} 42. h5 {[%clk 0:01:05.4]} 42... gxh5 {[%clk
0:00:25.1]} 43. gxh5 {[%clk 0:01:04.4]} 43... Bg5 {[%clk 0:00:24.3]} 44. Ke4
{[%clk 0:00:57]} 44... Be7 {[%clk 0:00:23.4]} 45. Bxe7 {[%clk 0:00:49.5]} 45...
Kxe7 {[%clk 0:00:22.8]} 46. Kd5 {[%clk 0:00:49.2]} 46... Kd7 {[%clk 0:00:21.5]}
47. f4 {[%clk 0:00:48.2]} 47... a5 {[%clk 0:00:17]} 48. bxa5 {[%clk 0:00:46]}
48... b4 {[%clk 0:00:16.5]} 49. Kc4 {[%clk 0:00:45.1]} 49... Kc6 {[%clk
0:00:16]} 50. Kxb4 {[%clk 0:00:44.3]} 50... Kb7 {[%clk 0:00:15.7]} 51. Kb5
{[%clk 0:00:43.4]} 51... f5 {[%clk 0:00:15.2]} 52. a6+ {[%clk 0:00:40.1]} 52...
Ka7 {[%clk 0:00:14.6]} 53. Ka5 {[%clk 0:00:35.8]} 53... Ka8 {[%clk 0:00:12.5]}
54. Kb6 {[%clk 0:00:29.8]} 54... Kb8 {[%clk 0:00:11.8]} 55. a7+ {[%clk
0:00:27.4]} 55... Ka8 {[%clk 0:00:11.4]} 56. Kc6 {[%clk 0:00:26.7]} 56... Kxa7
{[%clk 0:00:10.9]} 57. Kd5 {[%clk 0:00:26.1]} 57... Kb6 {[%clk 0:00:10.6]} 58.
Ke5 {[%clk 0:00:25.6]} 58... Kc7 {[%clk 0:00:10.5]} 59. Kxf5 {[%clk 0:00:25]}
59... Kd6 {[%clk 0:00:10]} 60. Kf6 {[%clk 0:00:24.7]} 60... Kd7 {[%clk
0:00:09.2]} 61. f5 {[%clk 0:00:24.1]} 61... Ke8 {[%clk 0:00:08.8]} 62. Kg7
{[%clk 0:00:23.6]} 62... Ke7 {[%clk 0:00:07.2]} 63. Kxh6 {[%clk 0:00:21.2]}
63... Kd6 {[%clk 0:00:07.1]} 64. f6 {[%clk 0:00:19.3]} 64... Ke5 {[%clk
0:00:07]} 65. f7 {[%clk 0:00:17.6]} 65... Kf4 {[%clk 0:00:06.9]} 66. f8=Q+
{[%clk 0:00:13.9]} 66... Ke3 {[%clk 0:00:06.8]} 67. Qb4 {[%clk 0:00:12.4]} 67...
Kd3 {[%clk 0:00:05.7]} 68. Qd6+ {[%clk 0:00:02.8]} 68... Ke3 {[%clk 0:00:05.3]}
69. Qa3+ {[%clk 0:00:01.5]} 69... Ke4 {[%clk 0:00:04.2]} 70. Qb4+ {[%clk
0:00:00.8]} 70... Ke3 {[%clk 0:00:03.7]} 71. Qb3+ {[%clk 0:00:00.3]} 71... Kd2
{[%clk 0:00:03.6]} 1/2-1/2

[Event "Live Chess"]
[Site "Chess.com"]
[Date "2023.05.21"]
[Round "-"]
[White "LiamClery2020"]
[Black "AMCWAML"]
[Result "1-0"]
[WhiteElo "1997"]
[BlackElo "2247"]
[TimeControl "300"]
[EndTime "7:33:34 PDT"]
[Termination "LiamClery2020 won by resignation"]

1. e4 {[%clk 0:04:59.1]} 1... c5 {[%clk 0:04:59]} 2. Nf3 {[%clk 0:04:58.3]} 2...
e6 {[%clk 0:04:58.2]} 3. c3 {[%clk 0:04:57]} 3... Nf6 {[%clk 0:04:56.8]} 4. e5
{[%clk 0:04:56.3]} 4... Nd5 {[%clk 0:04:56]} 5. d4 {[%clk 0:04:56.2]} 5... cxd4
{[%clk 0:04:53.3]} 6. cxd4 {[%clk 0:04:56.1]} 6... d6 {[%clk 0:04:52.9]} 7. Nc3
{[%clk 0:04:39.1]} 7... Nxc3 {[%clk 0:04:49]} 8. bxc3 {[%clk 0:04:37.5]} 8...
Qc7 {[%clk 0:04:48.6]} 9. Qb3 {[%clk 0:04:34.5]} 9... Bd7 {[%clk 0:04:31.6]} 10.
Ba3 {[%clk 0:04:32.1]} 10... Nc6 {[%clk 0:04:22.2]} 11. Bb5 {[%clk 0:04:23.6]}
11... dxe5 {[%clk 0:04:15.6]} 12. Bxf8 {[%clk 0:04:21]} 12... Kxf8 {[%clk
0:04:07.6]} 13. Bxc6 {[%clk 0:04:15.2]} 13... Bxc6 {[%clk 0:04:02.2]} 14. Nxe5
{[%clk 0:04:13.7]} 14... Bxg2 {[%clk 0:03:51.5]} 15. Rg1 {[%clk 0:04:11.2]}
15... Bd5 {[%clk 0:03:50.2]} 16. Qb4+ {[%clk 0:04:04.2]} 16... Kg8 {[%clk
0:03:34.2]} 17. Ng4 {[%clk 0:03:47.2]} 17... Qf4 {[%clk 0:03:20.2]} 18. Qe7
{[%clk 0:03:34.6]} 18... g6 {[%clk 0:02:56.8]} 19. Nf6+ {[%clk 0:03:30.8]} 19...
Qxf6 {[%clk 0:02:49.9]} 20. Qxf6 {[%clk 0:03:29.6]} 20... Rc8 {[%clk 0:02:47.2]}
21. Kd2 {[%clk 0:03:28.1]} 21... h5 {[%clk 0:02:45.4]} 22. Rac1 {[%clk
0:03:25.2]} 22... b5 {[%clk 0:02:37.9]} 23. Rg5 {[%clk 0:03:18.4]} 23... h4
{[%clk 0:02:33.7]} 24. Rcg1 {[%clk 0:03:16.7]} 24... Rh6 {[%clk 0:02:31.7]} 25.
R5g4 {[%clk 0:03:06.1]} 25... h3 {[%clk 0:02:23.4]} 26. Rh4 {[%clk 0:03:04.2]}
26... Rxh4 {[%clk 0:02:20.1]} 27. Qxh4 {[%clk 0:03:03.6]} 27... Bg2 {[%clk
0:02:17.8]} 28. Rb1 {[%clk 0:02:56.3]} 28... a6 {[%clk 0:02:16.2]} 29. Qf4
{[%clk 0:02:53.7]} 29... Rc4 {[%clk 0:02:06.9]} 30. Rb4 {[%clk 0:02:48.3]} 30...
Rc6 {[%clk 0:02:01.3]} 31. a4 {[%clk 0:02:46.1]} 31... bxa4 {[%clk 0:01:56.4]}
32. Rb8+ {[%clk 0:02:44.3]} 32... Kg7 {[%clk 0:01:51]} 33. Qh4 {[%clk
0:02:41.4]} 33... g5 {[%clk 0:01:27.4]} 34. Qxg5+ {[%clk 0:02:36.6]} 34... Kh7
{[%clk 0:01:25.3]} 35. Rg8 {[%clk 0:02:30.2]} 1-0

[Event "Live Chess"]
[Site "Chess.com"]
[Date "2023.05.21"]
[Round "-"]
[White "SupremeTactician"]
[Black "BillythekidFellowes"]
[Result "0-1"]
[WhiteElo "2195"]
[BlackElo "2104"]
[TimeControl "300"]
[EndTime "7:33:54 PDT"]
[Termination "BillythekidFellowes won by resignation"]

1. e4 {[%clk 0:04:59.6]} 1... Nc6 {[%clk 0:04:55.4]} 2. d4 {[%clk 0:04:58.9]}
2... d5 {[%clk 0:04:51.6]} 3. exd5 {[%clk 0:04:57.7]} 3... Qxd5 {[%clk
0:04:51.5]} 4. Be3 {[%clk 0:04:56.3]} 4... e5 {[%clk 0:04:46.8]} 5. Nc3 {[%clk
0:04:55.2]} 5... Bb4 {[%clk 0:04:45.1]} 6. dxe5 {[%clk 0:04:52.9]} 6... Qxd1+
{[%clk 0:04:43.4]} 7. Rxd1 {[%clk 0:04:51.9]} 7... Bxc3+ {[%clk 0:04:38.4]} 8.
bxc3 {[%clk 0:04:51]} 8... Nxe5 {[%clk 0:04:36.3]} 9. Bd4 {[%clk 0:04:50.1]}
9... f6 {[%clk 0:04:31.8]} 10. Bxe5 {[%clk 0:04:49.3]} 10... fxe5 {[%clk
0:04:28.9]} 11. Nf3 {[%clk 0:04:49.2]} 11... e4 {[%clk 0:04:28.3]} 12. Ng5
{[%clk 0:04:48.3]} 12... Nf6 {[%clk 0:04:27.2]} 13. Bc4 {[%clk 0:04:47.2]} 13...
Bf5 {[%clk 0:04:25.7]} 14. O-O {[%clk 0:04:46.2]} 14... h6 {[%clk 0:04:21.9]}
15. Nf7 {[%clk 0:04:45.6]} 15... Rf8 {[%clk 0:04:17.8]} 16. Ne5 {[%clk
0:04:44.7]} 16... Rd8 {[%clk 0:04:16.6]} 17. Rxd8+ {[%clk 0:04:42.7]} 17... Kxd8
{[%clk 0:04:15.7]} 18. Rd1+ {[%clk 0:04:42.6]} 18... Kc8 {[%clk 0:04:15.1]} 19.
h3 {[%clk 0:04:39.6]} 19... c6 {[%clk 0:04:11.5]} 20. g4 {[%clk 0:04:38.6]}
20... Bh7 {[%clk 0:04:09.3]} 21. Be6+ {[%clk 0:04:37.7]} 21... Kc7 {[%clk
0:04:07.7]} 22. Bb3 {[%clk 0:04:36.4]} 22... Re8 {[%clk 0:04:04.5]} 23. Nc4
{[%clk 0:04:35.5]} 23... b5 {[%clk 0:03:58.6]} 24. Ne3 {[%clk 0:04:31.9]} 24...
a5 {[%clk 0:03:47.3]} 25. a3 {[%clk 0:04:26.4]} 25... Nd7 {[%clk 0:03:35.3]} 26.
Bf7 {[%clk 0:04:18.3]} 26... Re7 {[%clk 0:03:29.6]} 27. Ba2 {[%clk 0:04:15.8]}
27... Ne5 {[%clk 0:03:26.7]} 28. Bd5 {[%clk 0:04:06.1]} 28... Rd7 {[%clk
0:02:58.9]} 29. Be6 {[%clk 0:03:57.6]} 29... Rxd1+ {[%clk 0:02:53.9]} 30. Nxd1
{[%clk 0:03:57.5]} 30... Nf3+ {[%clk 0:02:48.4]} 31. Kf1 {[%clk 0:03:56.5]}
31... Kd6 {[%clk 0:02:45.9]} 32. Bc8 {[%clk 0:03:55.1]} 32... Nd2+ {[%clk
0:02:41.9]} 33. Ke2 {[%clk 0:03:53]} 33... Nc4 {[%clk 0:02:41.1]} 34. Ne3 {[%clk
0:03:48.8]} 34... Nxa3 {[%clk 0:02:39]} 35. Bf5 {[%clk 0:03:47.6]} 35... Bxf5
{[%clk 0:02:27.7]} 36. Nxf5+ {[%clk 0:03:47.1]} 36... Ke5 {[%clk 0:02:26.6]} 37.
Nxg7 {[%clk 0:03:45.3]} 37... Nxc2 {[%clk 0:02:24.8]} 38. Kd2 {[%clk 0:03:44.2]}
38... Na3 {[%clk 0:02:23.5]} 39. Nf5 {[%clk 0:03:35.9]} 39... Nc4+ {[%clk
0:02:21.5]} 40. Kc2 {[%clk 0:03:35]} 40... a4 {[%clk 0:02:16.7]} 41. Nxh6 {[%clk
0:03:33.2]} 41... c5 {[%clk 0:02:11.7]} 42. Nf7+ {[%clk 0:03:32.1]} 42... Kf4
{[%clk 0:02:09.6]} 43. g5 {[%clk 0:03:30.1]} 43... Kf5 {[%clk 0:02:07.6]} 44. h4
{[%clk 0:03:29.4]} 44... Kg6 {[%clk 0:02:00.1]} 45. Nd8 {[%clk 0:03:28.1]} 45...
b4 {[%clk 0:01:58.4]} 46. cxb4 {[%clk 0:03:26.8]} 46... cxb4 {[%clk 0:01:57.5]}
47. Nc6 {[%clk 0:03:25.1]} 47... b3+ {[%clk 0:01:56.5]} 48. Kc3 {[%clk
0:03:24.4]} 48... b2 {[%clk 0:01:54.8]} 49. Kc2 {[%clk 0:03:23.5]} 49... a3
{[%clk 0:01:54.3]} 50. Nb4 {[%clk 0:03:22.6]} 50... Nd2 {[%clk 0:01:52.6]} 51.
Kxd2 {[%clk 0:03:16.4]} 51... b1=Q {[%clk 0:01:51]} 52. Nd5 {[%clk 0:03:16.3]}
52... Qd3+ {[%clk 0:01:49.8]} 0-1